lending/lending_fUSD_20250813
["ID","MTS","AMOUNT","RATE_DAILY","PERIOD"]
[378832069,1755045038294,-730.06,0.00031,2]
[378832070,1755045038303,-150.0,0.0003118,2]
[378832071,1755045038314,-1199.999998,0.0003121,2]
[378832072,1755045038323,-283.38,0.00031446,2]
[378832073,1755045038332,-150.0,0.0003237,2]
[378832074,1755045038341,-1900.21549589,0.00032738,2]
[378832075,1755045038350,-158.5376335,0.00032757,15]
[378832076,1755045038359,-283.38,0.00032876,2]
[378832077,1755045038368,-720.26,0.00033038,2]
[378832078,1755045038377,-999.99,0.00033038,2]
[378832079,1755045038386,-150.0,0.0003355,2]
[378832080,1755045038396,-3150.03522321,0.00033658,2]
[378832081,1755045038405,-150.54,0.00034247,2]
[378832082,1755045038414,-283.38,0.00034305,2]
[378832083,1755045038423,-56801.26712192,0.000345,2]
[378832084,1755045038432,-150.0,0.0003473,2]
[378832085,1755045038441,-500.0,0.000349,5]
[378832086,1755045038451,-302.0,0.00035,14]
[378832087,1755045038460,-730.06,0.00035,2]
[378832088,1755045038469,-150.0,0.0003592,2]
[378832089,1755045038478,-1249.71,0.00035968,2]
[378832090,1755045038487,-1900.21549589,0.00036198,2]
[378832091,1755045038497,-3150.03522321,0.00036532,2]
[378832092,1755045038506,-1079.02428018,0.0003669,9]
[378832093,1755045038691,-150.0,0.00036746,120]
[378832094,1755045038750,-150.0,0.00036941,120]
[378832095,1755045038762,-150.0,0.000371,2]
[378832096,1755045038772,-150.0,0.00037152,120]
[378832097,1755045038781,-158.5376335,0.00037186,15]
[378832098,1755045038790,-533.55246255,0.00037258,5]
[378832099,1755045038799,-151.54805674,0.00037689,2]
[378832100,1755045038808,-300.0,0.00037689,10]
[378832101,1755045038818,-300.0,0.00037689,10]
[378832102,1755045038827,-151.0,0.0003769,7]
[378832103,1755045038837,-151.0,0.0003769,7]
[378832104,1755045038846,-54859.71656511,0.0003769,2]
[378832105,1755045038856,-84269.7560234,0.0003769,2]
[378832106,1755045038865,-187841.83248782,0.0003769,2]
[378832107,1755045038874,-67048.68873142,0.0003769,2]
[378832108,1755045038883,-6267.16650703,0.0003769,7]
[378832109,1755045038892,-27201.31795846,0.0003769,2]
[378832110,1755045038901,-4702.24281766,0.0003769,2]
[378832111,1755045038911,-20798.03994832,0.0003769,2]
[378832112,1755045038922,-23245.67019725,0.0003769,2]
[378832113,1755045038931,-20450.00169063,0.0003769,2]
[378832114,1755045038940,-76808.19217328,0.0003769,2]
[378832116,1755045039555,-9492.60919849,0.0003769,2]
[378832234,1755045042613,-19752.79635708,0.0003769,2]
[378832235,1755045042622,-150.0,0.0003779,120]
[378832236,1755045042632,-151.0,0.00038,120]
[378832237,1755045042641,-152.0,0.00038,120]
[378832238,1755045042651,-150.0,0.0003829,2]
[378832239,1755045042660,-9999.999999,0.000385,120]
[378832240,1755045042669,-730.06,0.000385,2]
[378832241,1755045042679,-399.999998,0.0003925,30]
[378832242,1755045042688,-3150.03522321,0.00039405,2]
[378832243,1755045042697,-150.0,0.0003947,2]
[378832244,1755045042706,-1900.21549589,0.00039657,2]
[378832245,1755045042715,-1011.0,0.000397,5]
[378832246,1755045042724,-265.20738845,0.00039726,15]
[378832247,1755045042734,-5166.34353352,0.0004,120]
[378832248,1755045042745,-150.0,0.0004065,2]
[378832249,1755045042754,-152.0,0.000407,120]
[378832250,1755045042763,-151.0,0.000409,120]
[378832251,1755045042772,-1000.0,0.00041,120]
[378832252,1755045042781,-683.635,0.000412,60]
[378832253,1755045042790,-452.60752921,0.00041224,30]
[378832254,1755045042799,-158.5376335,0.00041614,15]
[378832255,1755045042808,-3267.75185339,0.00041672,2]
[378832256,1755045042818,-1010.05444804,0.00041704,2]
[378832257,1755045042827,-1010.05444804,0.00041723,2]
[378832258,1755045042836,-3267.75185339,0.00041727,2]
[378832259,1755045042845,-499.8093575,0.00041729,2]
[378832260,1755045042854,-499.8093575,0.00041768,2]
[378832261,1755045042864,-2898.34391143,0.00041777,2]
[378832262,1755045042873,-2898.34391143,0.0004179,2]
[378832263,1755045042882,-1010.05444804,0.00041799,2]
[378832264,1755045042892,-1010.05444804,0.00041812,2]
[378832265,1755045042901,-638.15097447,0.00041813,2]
[378832266,1755045042911,-150.0,0.0004184,2]
[378832267,1755045042924,-638.15097447,0.00041849,2]
[378832268,1755045042933,-3267.75185339,0.00041859,2]
[378832269,1755045042942,-638.15097447,0.00041888,2]
[378832270,1755045042951,-536.12,0.00041902,30]
[378832271,1755045042960,-11538.93,0.00041902,2]
[378832272,1755045042970,-3267.75185339,0.00041903,2]
[378832273,1755045042979,-2898.34391143,0.00041953,2]
[378832274,1755045042989,-499.8093575,0.00041955,2]
[378832275,1755045042998,-499.8093575,0.00041973,2]
[378832276,1755045043008,-638.15097447,0.00041987,2]
[378832277,1755045043018,-2898.34391143,0.0004199,2]
[378832278,1755045043028,-1000.0,0.00042,120]
[378832279,1755045043038,-3150.03522321,0.00042279,15]
[378832280,1755045043047,-730.06,0.000423,2]
[378832281,1755045043056,-150.0,0.000425,2]
[378832282,1755045043066,-150.0,0.0004302,2]
[378832283,1755045043075,-1900.21549589,0.00043117,15]
[378832284,1755045043085,-152.0,0.000433,120]
[378832285,1755045043095,-151.0,0.000438,120]
[378832287,1755045043104,-153.0,0.00043836,60]
[378832288,1755045043113,-153.0,0.00043836,60]
[378832289,1755045043122,-153.0,0.00043836,60]
[378832290,1755045043131,-153.0,0.00043836,60]
[378832291,1755045043140,-153.0,0.00043836,60]
[378832292,1755045043151,-153.0,0.00043836,60]
[378832293,1755045043160,-153.0,0.00043836,60]
[378832294,1755045043170,-153.0,0.00043836,60]
[378832295,1755045043179,-153.0,0.00043836,60]
[378832296,1755045043189,-153.0,0.00043836,60]
[378832297,1755045043198,-153.0,0.00043836,60]
[378832298,1755045043207,-153.0,0.00043836,60]
[378832300,1755045043217,-153.0,0.00043836,60]
[378832302,1755045043227,-153.0,0.00043836,60]
[378832304,1755045043237,-153.0,0.00043836,60]
[378832306,1755045043247,-153.0,0.00043836,60]
[378832308,1755045043256,-153.0,0.00043836,60]
[378832310,1755045043265,-153.0,0.00043836,60]
[378832313,1755045043274,-153.0,0.00043836,60]
[378832316,1755045043283,-400.0,0.000441,120]
[378832319,1755045043292,-150.0,0.000442,2]
[378832321,1755045043301,-224.57,0.00044267,60]
[378832323,1755045043311,-400.0,0.000443,120]
[378832325,1755045043319,-442.83,0.00044419,120]
[378832327,1755045043329,-899.94551932,0.000445,120]
[378832329,1755045043338,-400.0,0.000445,120]
[378832331,1755045043347,-1275.87,0.00044562,2]
[378832333,1755045043357,-400.0,0.000447,120]
[378832335,1755045043366,-779.89,0.00044886,2]
[378832337,1755045043376,-1300.0,0.000449,16]
[378832339,1755045043385,-400.0,0.000449,120]
[378832341,1755045043396,-741.84,0.000449,120]
[378832343,1755045043405,-5713.31892014,0.00044966,90]
[378832345,1755045043415,-30247.87346487,0.00045,2]
[378832347,1755045043424,-1813.80512981,0.00045,120]
[378832349,1755045043433,-10739.13312116,0.00045,30]
[378832351,1755045043442,-2091.13,0.00045,14]
[378832353,1755045043451,-217.42863924,0.00045,30]
[378832355,1755045043460,-23532.69915554,0.00045,120]
[378832357,1755045043470,-400.0,0.000451,120]
[378832359,1755045043479,-168.0,0.00045107,2]
[378832360,1755045043488,-3150.03522321,0.00045153,15]
[378832361,1755045043497,-200.0,0.0004518,2]
[378832362,1755045043506,-200.0,0.0004518,2]
[378832363,1755045043515,-200.0,0.0004518,2]
[378832364,1755045043524,-200.0,0.0004518,2]
[378832365,1755045043533,-200.0,0.0004518,2]
[378832366,1755045043543,-200.0,0.0004518,2]
[378832367,1755045043551,-200.0,0.0004518,2]
[378832368,1755045043560,-200.0,0.0004518,2]
[378832369,1755045043569,-200.0,0.0004518,2]
[378832370,1755045043578,-200.0,0.0004518,2]
[378832371,1755045043587,-200.0,0.0004518,2]
[378832372,1755045043596,-200.0,0.0004518,2]
[378832373,1755045043605,-200.0,0.0004518,2]
[378832375,1755045043614,-200.0,0.0004518,2]
[378832376,1755045043623,-200.0,0.0004518,2]
[378832378,1755045043632,-200.0,0.0004518,2]
[378832380,1755045043641,-200.0,0.0004518,2]
[378832382,1755045043651,-200.0,0.0004518,2]
[378832384,1755045043661,-200.0,0.0004518,2]
[378832386,1755045043670,-200.0,0.0004518,2]
[378832388,1755045043680,-1593.09,0.00045183,2]
[378832390,1755045043689,-666.0,0.00045185,3]
[378832392,1755045043698,-23900.0,0.00045208,2]
[378832394,1755045043707,-151.0,0.00045208,30]
[378832396,1755045043716,-173.23,0.00045228,30]
[378832398,1755045043725,-1144.77,0.00045228,30]
[378832400,1755045043735,-936.14,0.00045228,30]
[378832402,1755045043744,-540.7,0.0004523,2]
[378832404,1755045043753,-400.0,0.000453,120]
[378832406,1755045043762,-166.37,0.00045384,2]
[378832408,1755045043771,-150.0,0.0004539,2]
[378832410,1755045043781,-150.0,0.00045466,2]
[378832412,1755045043790,-164.0,0.000455,120]
[378832414,1755045043798,-181.0,0.000455,120]
[378832416,1755045043808,-534.62,0.000455,120]
[378832418,1755045043817,-211.77135896,0.00045689,2]
[378832420,1755045043826,-400.0,0.000457,120]
[378832422,1755045043835,-2026.0,0.00045723,2]
[378832424,1755045043845,-2669.454,0.00045723,2]
[378832426,1755045043854,-810.0,0.00045723,2]
[378832428,1755045043864,-635.784,0.00045723,2]
[378832430,1755045043873,-1253.0,0.00045723,2]
[378832432,1755045043882,-21466.0,0.00045723,2]
[378832434,1755045043891,-779.707,0.00045723,2]
[378832436,1755045043903,-893.0,0.00045723,2]
[378832438,1755045043912,-9390.04,0.0004573,2]
[378832439,1755045043923,-1000.0,0.000458,2]
[378832442,1755045043932,-203.54,0.00045893,120]
[378832444,1755045043942,-1040.22973582,0.000459,120]
[378832446,1755045043951,-400.0,0.000459,120]
[378832447,1755045043961,-152.0,0.00046,120]
[378832449,1755045043970,-202.54289403,0.00046,30]
[378832451,1755045043979,-158.5376335,0.00046043,15]
[378832454,1755045043988,-400.0,0.000461,120]
[378832456,1755045044000,-862.89,0.00046124,120]
[378832458,1755045044009,-150.0,0.00046139,120]
[378832460,1755045044018,-604.33,0.00046166,30]
[378832462,1755045044027,-599.39,0.00046166,30]
[378832464,1755045044036,-2091.13,0.000462,14]
[378832466,1755045044045,-224.57,0.0004626,120]
[378832468,1755045044054,-400.0,0.000463,120]
[378832470,1755045044063,-604.48,0.00046328,30]
[378832471,1755045044072,-150.0,0.0004657,2]
[378832473,1755045044081,-592.8,0.00046576,30]
[378832475,1755045044090,-1900.21549589,0.00046576,15]
[378832477,1755045044100,-151.0,0.000467,120]
[378832480,1755045044109,-200.0,0.00047014,2]
[378832481,1755045044118,-500.0,0.00047122,60]
[378832483,1755045044127,-500.0,0.00047122,60]
[378832485,1755045044138,-175.25450384,0.00047205,30]
[378832487,1755045044148,-150.0,0.00047314,120]
[378832490,1755045044158,-168.0,0.00047326,2]
[378832492,1755045044167,-150.0,0.00047526,120]
[378832493,1755045044177,-1000.0,0.00047527,14]
[378832494,1755045044186,-518.41249995,0.00047605,120]
[378832495,1755045044194,-168.0,0.00047656,2]
[378832496,1755045044203,-2091.13,0.000477,14]
[378832497,1755045044212,-165.85,0.00047719,2]
[378832498,1755045044221,-175.25450384,0.00047726,30]
[378832499,1755045044230,-150.0,0.0004776,2]
[378832500,1755045044240,-408.11,0.0004794,7]
[378832501,1755045044249,-594.73,0.00047951,30]
[378832502,1755045044259,-168.0,0.00047957,2]
[378832503,1755045044268,-270.0,0.00047967,120]
[378832504,1755045044278,-164.0,0.00048,120]
[378832505,1755045044287,-181.0,0.00048,120]
[378832506,1755045044296,-21194.63388058,0.00048,30]
[378832507,1755045044305,-3150.03522321,0.00048026,15]
[378832508,1755045044314,-150.0,0.00048034,120]
[378832509,1755045044323,-300.0,0.00048081,120]
[378832510,1755045044333,-5699.64,0.0004812,2]
[378832511,1755045044343,-500.0,0.00048193,30]
[378832512,1755045044353,-500.0,0.00048218,60]
[378832513,1755045044362,-500.0,0.00048218,60]
[378832514,1755045044371,-175.25450384,0.00048247,30]
[378832515,1755045044381,-224.57,0.00048253,120]
[378832516,1755045044390,-617.85,0.00048285,2]
[378832517,1755045044400,-155.57063368,0.0004835,2]
[378832518,1755045044409,-593.95,0.00048358,30]
[378832519,1755045044419,-610.19,0.00048358,30]
[378832520,1755045044429,-2751.0,0.00048358,120]
[378832521,1755045044438,-600.0,0.00048498,45]
[378832522,1755045044448,-151.16957197,0.00048517,120]
[378832523,1755045044457,-150.0,0.00048545,7]
[378832524,1755045044466,-150.0,0.00048588,7]
[378832525,1755045044475,-335.74,0.000486,7]
[378832526,1755045044485,-152.0,0.000486,120]
[378832527,1755045044494,-150.0,0.00048604,7]
[378832528,1755045044503,-150.0,0.00048714,7]
[378832529,1755045044512,-234.5297,0.0004872,43]
[378832530,1755045044523,-21466.0,0.00048723,2]
[378832531,1755045044533,-150.0,0.0004875,7]
[378832532,1755045044542,-175.25450384,0.00048767,30]
[378832533,1755045044551,-150.0,0.00048777,7]
[378832534,1755045044560,-150.0,0.00048787,7]
[378832535,1755045044570,-602.81,0.00048796,30]
[378832536,1755045044578,-281.26548144,0.00048799,120]
[378832537,1755045044587,-22755.80772211,0.000488,120]
[378832538,1755045044596,-153.1303926,0.000488,120]
[378832539,1755045044605,-2091.13,0.000488,14]
[378832540,1755045044614,-150.0,0.00048846,7]
[378832541,1755045044623,-150.0,0.00048856,7]
[378832542,1755045044632,-1800.0,0.000489,17]
[378832543,1755045044641,-150.0,0.00048929,7]
[378832544,1755045044651,-200.0,0.0004894,2]
[378832545,1755045044660,-150.0,0.00048947,7]
[378832546,1755045044671,-150.0,0.0004896,7]
[378832547,1755045044682,-150.0,0.00048966,7]
[378832548,1755045044691,-180.89799403,0.00048985,14]
[378832549,1755045044703,-150.0,0.00048999,7]
[378832550,1755045044712,-24179.04,0.00049,120]
[378832551,1755045044721,-2474.080001,0.00049,120]
[378832552,1755045044731,-730.06,0.00049,2]
[378832553,1755045044740,-176.13146255,0.00049,7]
[378832554,1755045044749,-150.0,0.00049003,7]
[378832555,1755045044758,-150.0,0.00049004,7]
[378832556,1755045044767,-168.0,0.00049006,2]
[378832557,1755045044776,-150.0,0.00049008,7]
[378832558,1755045044786,-150.0,0.00049018,7]
[378832559,1755045044795,-210.0,0.0004904,30]
[378832560,1755045044804,-150.0,0.00049089,7]
[378832561,1755045044813,-5000.0,0.00049136,60]
[378832562,1755045044822,-150.0,0.00049174,7]
[378832563,1755045044831,-1000.0,0.00049178,120]
[378832564,1755045044840,-603.11,0.00049212,30]
[378832565,1755045044849,-151.0,0.00049214,120]
[378832566,1755045044858,-300.0,0.00049214,120]
[378832567,1755045044867,-151.0,0.00049214,120]
[378832568,1755045044876,-311.1,0.00049214,120]
[378832569,1755045044885,-322.6107,0.00049214,120]
[378832570,1755045044896,-151.0,0.00049214,120]
[378832571,1755045044905,-334.5472959,0.00049214,120]
[378832572,1755045044917,-151.0,0.00049214,120]
[378832573,1755045044927,-346.92554585,0.00049214,120]
[378832574,1755045044936,-151.0,0.00049214,120]
[378832575,1755045044945,-359.76179104,0.00049214,120]
[378832576,1755045044955,-373.07297731,0.00049214,120]
[378832577,1755045044965,-370.45493882,0.00049214,120]
[378832578,1755045044974,-151.0,0.00049214,120]
[378832579,1755045044984,-151.0,0.00049214,120]
[378832580,1755045044993,-206.37372345,0.00049214,120]
[378832581,1755045045004,-500.0,0.00049214,120]
[378832582,1755045045014,-500.0,0.00049214,120]
[378832583,1755045045024,-500.0,0.00049214,120]
[378832584,1755045045033,-500.0,0.00049214,120]
[378832585,1755045045043,-151.0,0.00049214,120]
[378832586,1755045045052,-500.0,0.00049214,120]
[378832587,1755045045062,-151.0,0.00049214,120]
[378832588,1755045045071,-500.0,0.00049214,120]
[378832589,1755045045080,-151.0,0.00049214,120]
[378832590,1755045045089,-500.0,0.00049214,120]
[378832591,1755045045099,-151.0,0.00049214,120]
[378832592,1755045045108,-151.0,0.00049214,120]
[378832593,1755045045117,-151.0,0.00049214,120]
[378832594,1755045045127,-1000.0,0.00049214,120]
[378832595,1755045045137,-1037.0,0.00049214,120]
[378832596,1755045045148,-1075.369,0.00049214,120]
[378832597,1755045045158,-1115.157653,0.00049214,120]
[378832598,1755045045167,-1156.41848616,0.00049214,120]
[378832599,1755045045177,-1199.20597015,0.00049214,120]
[378832600,1755045045187,-1243.57659104,0.00049214,120]
[378832601,1755045045196,-1289.58892491,0.00049214,120]
[378832602,1755045045205,-921.14950475,0.00049214,120]
[378832603,1755045045216,-200.0,0.00049214,120]
[378832604,1755045045225,-250.0,0.00049214,120]
[378832605,1755045045235,-250.0,0.00049214,120]
[378832606,1755045045244,-250.0,0.00049214,120]
[378832607,1755045045253,-250.0,0.00049214,120]
[378832608,1755045045263,-250.0,0.00049214,120]
[378832609,1755045045272,-250.0,0.00049214,120]
[378832610,1755045045281,-250.0,0.00049214,120]
[378832611,1755045045290,-250.0,0.00049214,120]
[378832612,1755045045300,-396.28077071,0.00049214,120]
[378832613,1755045045310,-1357.4837235,0.00049214,120]
[378832614,1755045045319,-236.71804642,0.00049214,120]
[378832615,1755045045328,-160.0,0.00049214,120]
[378832616,1755045045338,-160.0,0.00049214,120]
[378832617,1755045045348,-160.0,0.00049214,120]
[378832618,1755045045357,-160.0,0.00049214,120]
[378832620,1755045045367,-160.0,0.00049214,120]
[378832621,1755045045376,-151.0,0.00049214,120]
[378832622,1755045045386,-160.0,0.00049214,120]
[378832623,1755045045397,-160.0,0.00049214,120]
[378832624,1755045045406,-151.0,0.00049214,120]
[378832625,1755045045416,-160.0,0.00049214,120]
[378832626,1755045045426,-160.0,0.00049214,120]
[378832627,1755045045435,-160.0,0.00049214,120]
[378832628,1755045045444,-160.0,0.00049214,120]
[378832629,1755045045454,-160.0,0.00049214,120]
[378832630,1755045045463,-160.0,0.00049214,120]
[378832631,1755045045472,-600.0,0.00049214,120]
[378832632,1755045045481,-160.0,0.00049214,120]
[378832633,1755045045491,-600.0,0.00049214,120]
[378832634,1755045045500,-160.0,0.00049214,120]
[378832635,1755045045511,-500.0,0.00049214,120]
[378832636,1755045045520,-600.0,0.00049214,120]
[378832637,1755045045530,-160.0,0.00049214,120]
[378832638,1755045045539,-500.0,0.00049214,120]
[378832639,1755045045548,-600.0,0.00049214,120]
[378832640,1755045045557,-160.0,0.00049214,120]
[378832641,1755045045566,-500.0,0.00049214,120]
[378832642,1755045045576,-600.0,0.00049214,120]
[378832643,1755045045585,-160.0,0.00049214,120]
[378832644,1755045045798,-500.0,0.00049214,120]
[378832645,1755045045807,-600.0,0.00049214,120]
[378832646,1755045045817,-160.0,0.00049214,120]
[378832647,1755045045826,-500.0,0.00049214,120]
[378832648,1755045045835,-600.0,0.00049214,120]
[378832649,1755045045844,-160.0,0.00049214,120]
[378832650,1755045045853,-500.0,0.00049214,120]
[378832651,1755045045862,-600.0,0.00049214,120]
[378832652,1755045045871,-500.0,0.00049214,120]
[378832653,1755045045880,-600.0,0.00049214,120]
[378832654,1755045045890,-500.0,0.00049214,120]
[378832655,1755045045900,-600.0,0.00049214,120]
[378832656,1755045045909,-500.0,0.00049214,120]
[378832657,1755045045920,-600.0,0.00049214,120]
[378832658,1755045045931,-600.0,0.00049214,120]
[378832659,1755045045940,-600.0,0.00049214,120]
[378832660,1755045045950,-150.0,0.00049214,7]
[378832661,1755045045959,-600.0,0.00049214,120]
[378832662,1755045045969,-600.0,0.00049214,120]
[378832663,1755045045978,-600.0,0.00049214,120]
[378832664,1755045045987,-600.0,0.00049214,120]
[378832665,1755045045997,-500.0,0.00049214,120]
[378832666,1755045046006,-600.0,0.00049214,120]
[378832667,1755045046015,-600.0,0.00049214,120]
[378832669,1755045046025,-156.30143435,0.00049214,120]
[378832671,1755045046034,-600.0,0.00049214,120]
[378832673,1755045046044,-600.0,0.00049214,120]
[378832675,1755045046053,-600.0,0.00049214,120]
[378832677,1755045046062,-600.0,0.00049214,120]
[378832679,1755045046071,-600.0,0.00049214,120]
[378832681,1755045046080,-1000.0,0.00049214,120]
[378832683,1755045046090,-600.0,0.00049214,120]
[378832685,1755045046099,-1000.0,0.00049214,120]
[378832687,1755045046109,-600.0,0.00049214,120]
[378832689,1755045046118,-1000.0,0.00049214,120]
[378832691,1755045046127,-206.47436341,0.00049214,120]
[378832693,1755045046136,-1000.0,0.00049214,120]
[378832695,1755045046145,-1000.0,0.00049214,120]
[378832696,1755045046155,-1000.0,0.00049214,120]
[378832698,1755045046165,-1000.0,0.00049214,120]
[378832699,1755045046174,-1000.0,0.00049214,120]
[378832700,1755045046183,-1000.0,0.00049214,120]
[378832701,1755045046192,-1000.0,0.00049214,120]
[378832703,1755045046201,-1000.0,0.00049214,120]
[378832704,1755045046210,-1000.0,0.00049214,120]
[378832705,1755045046219,-1000.0,0.00049214,120]
[378832706,1755045046228,-151.0,0.00049214,120]
[378832707,1755045046238,-285.907719,0.00049214,120]
[378832708,1755045046247,-151.0,0.00049214,120]
[378832709,1755045046257,-200.0,0.00049214,120]
[378832710,1755045046267,-207.4,0.00049214,120]
[378832711,1755045046276,-300.0,0.00049214,120]
[378832712,1755045046286,-215.0738,0.00049214,120]
[378832713,1755045046295,-416.37393588,0.00049214,120]
[378832714,1755045046304,-223.0315306,0.00049214,120]
[378832715,1755045046314,-151.0,0.00049214,120]
[378832716,1755045046323,-231.28369723,0.00049214,120]
[378832717,1755045046332,-5000.0,0.00049214,120]
[378832718,1755045046341,-1000.0,0.00049214,120]
[378832719,1755045046351,-151.0,0.00049214,120]
[378832720,1755045046360,-239.84119403,0.00049214,120]
[378832721,1755045046369,-5000.0,0.00049214,120]
[378832722,1755045046378,-1000.0,0.00049214,120]
[378832723,1755045046388,-151.0,0.00049214,120]
[378832724,1755045046398,-248.71531821,0.00049214,120]
[378832725,1755045046407,-5000.0,0.00049214,120]
[378832726,1755045046416,-1000.0,0.00049214,120]
[378832727,1755045046426,-151.0,0.00049214,120]
[378832728,1755045046435,-257.91778498,0.00049214,120]
[378832729,1755045046445,-5000.0,0.00049214,120]
[378832730,1755045046454,-1000.0,0.00049214,120]
[378832731,1755045046463,-151.0,0.00049214,120]
[378832732,1755045046472,-267.46074303,0.00049214,120]
[378832733,1755045046482,-500.0,0.00049214,120]
[378832734,1755045046491,-5000.0,0.00049214,120]
[378832735,1755045046500,-1000.0,0.00049214,120]
[378832736,1755045046510,-500.0,0.00049214,120]
[378832737,1755045046518,-5125.08371312,0.00049214,120]
[378832738,1755045046528,-1000.0,0.00049214,120]
[378832739,1755045046537,-500.0,0.00049214,120]
[378832740,1755045046546,-1000.0,0.00049214,120]
[378832741,1755045046555,-277.35679052,0.00049214,120]
[378832742,1755045046564,-1000.0,0.00049214,120]
[378832743,1755045046574,-1000.0,0.00049214,120]
[378832744,1755045046583,-287.61899177,0.00049214,120]
[378832745,1755045046592,-298.26089446,0.00049214,120]
[378832746,1755045046601,-1000.0,0.00049214,120]
[378832747,1755045046610,-1000.0,0.00049214,120]
[378832748,1755045046619,-309.29654756,0.00049214,120]
[378832749,1755045046628,-500.0,0.00049214,120]
[378832750,1755045046638,-1000.0,0.00049214,120]
[378832751,1755045046647,-320.74051982,0.00049214,120]
[378832752,1755045046657,-151.0,0.00049214,120]
[378832753,1755045046666,-500.0,0.00049214,120]
[378832754,1755045046675,-1000.0,0.00049214,120]
[378832755,1755045046685,-151.0,0.00049214,120]
[378832756,1755045046694,-332.60791905,0.00049214,120]
[378832757,1755045046703,-1000.0,0.00049214,120]
[378832758,1755045046712,-500.0,0.00049214,120]
[378832759,1755045046721,-344.91441206,0.00049214,120]
[378832760,1755045046731,-151.0,0.00049214,120]
[378832761,1755045046740,-1000.0,0.00049214,120]
[378832762,1755045046749,-1000.0,0.00049214,120]
[378832763,1755045046758,-500.0,0.00049214,120]
[378832764,1755045046767,-357.6762453,0.00049214,120]
[378832765,1755045046776,-1000.0,0.00049214,120]
[378832766,1755045046785,-151.67161252,0.00049214,120]
[378832767,1755045046794,-1000.0,0.00049214,120]
[378832768,1755045046803,-500.0,0.00049214,120]
[378832769,1755045046812,-1000.0,0.00049214,120]
[378832770,1755045046822,-370.91026638,0.00049214,120]
[378832771,1755045046831,-1000.0,0.00049214,120]
[378832772,1755045046840,-500.0,0.00049214,120]
[378832773,1755045046849,-384.63394623,0.00049214,120]
[378832774,1755045046858,-1062.39973563,0.00049214,120]
[378832775,1755045046871,-1000.0,0.00049214,120]
[378832776,1755045046880,-480.67379117,0.00049214,120]
[378832777,1755045046891,-1000.0,0.00049214,120]
[378832778,1755045046901,-1000.0,0.00049214,120]
[378832779,1755045046910,-1000.0,0.00049214,120]
[378832780,1755045046923,-1000.0,0.00049214,120]
[378832781,1755045046932,-1000.0,0.00049214,120]
[378832782,1755045046941,-151.0,0.00049214,30]
[378832783,1755045046950,-200.0,0.00049215,7]
[378832784,1755045046960,-5000.0,0.00049215,120]
[378832785,1755045046970,-88888.0,0.00049215,120]
[378832786,1755045046979,-336.48198283,0.00049243,14]
[378832787,1755045046988,-150.0,0.00049248,7]
[378832788,1755045046999,-150.0,0.00049259,7]
[378832789,1755045047009,-150.0,0.00049271,7]
[378832790,1755045047028,-150.0,0.00049273,7]
[378832791,1755045047038,-150.0,0.00049288,30]
[378832792,1755045047048,-152.51153834,0.00049288,30]
[378832793,1755045047059,-150.0,0.00049288,30]
[378832794,1755045047069,-150.27452885,0.00049288,30]
[378832795,1755045047079,-150.0,0.00049288,30]